Cogmind - Beta 13 @@@ ROGUE MODE // 2024.04.04 @ 22:41:18 Player: Feral_Cog Result: Destroyed by G-47 Trooper with Particle Gun Performance ------------- Evolutions (3) 1500 Regions Visited (4) 800 Robots Destroyed (91) 455 Value Destroyed (2365) 2365 Prototype IDs (8) 160 Alien Tech Used (0) 0 Bonus (121) 121 TOTAL SCORE: 5401 Bonus ------- High Alert Combat Kills 121 Cogmind --------- Core Integrity 0/700 Matter 285/300 Energy 142/150 System Corruption 10% Temperature Cool (9) Movement Core (100) Ox1 Location -7/Factory Parts ------- > --- POWER (1) -------- Micro Nuclear Core > --- PROPULSION (2) --- (None) > --- UTILITY (6) ------ (None) > --- WEAPON (4) ------- (None) > --- INVENTORY (5) ---- Target Analyzer Particle Charger Hacking Suite Peak State ------------ > --- POWER ------------ Cooled Ion Engine > --- PROPULSION ------- (None) > --- UTILITY ---------- Improved Heat Sink Medium Storage Unit Machine Analyzer Targeting Computer Particle Charger > --- WEAPON ----------- Advanced EMP Blaster Advanced EMP Blaster Greatsword > --- INVENTORY -------- Particle Charger Hacking Suite [Rating: 30] Favorites ----------- Power Ion Engine Engine Ion Engine Power Core Micro Nuclear Core Propulsion Light Treads Treads Light Treads Hover Unit Gravmag System Utility Medium Storage Unit Device Heat Sink Storage Medium Storage Unit Processor Targeting Computer Protection Light Armor Plating Weapon EMP Blaster Energy Gun EM Pulse Gun Ballistic Gun Assault Rifle Ballistic Cannon Improved Light Cannon Launcher EMP Blaster Slashing Weapon Greatsword Build | -11 -10 -9 -8 -7 ------- Run | Yrd Mat Mat Mat Fac Slots Evolved 6 | . . 2 2 2 Power . | . . . . . Propulsion . | . . . . . Utility 4 | . . 1 1 2 Weapon 2 | . . 1 1 . Parts Attached 59 | 6 13 21 8 11 Power 7 | 1 . 4 . 2 Engine 6 | 1 . 4 . 1 Core 1 | . . . . 1 Reactor . | . . . . . Propulsion 15 | 2 6 4 2 1 Treads 14 | 2 6 4 2 . Leg . | . . . . . Wheel . | . . . . . Hover 1 | . . . . 1 Flight . | . . . . . Utility 17 | 1 4 3 4 5 Device 5 | . . 1 2 2 Storage 3 | 1 1 . . 1 Processor 3 | . 1 1 . 1 Hackware . | . . . . . Protection 6 | . 2 1 2 1 Artifact . | . . . . . Weapon 20 | 2 3 10 2 3 Energy Gun 8 | 2 1 5 . . Energy Cannon . | . . . . . Ballistic Gun 3 | . 2 1 . . Ballistic Cannon 1 | . . 1 . . Launcher 7 | . . 3 2 2 Special Weapon . | . . . . . Impact Weapon . | . . . . . Slashing Weapon 1 | . . . . 1 Piercing Weapon . | . . . . . Special Melee Weapon . | . . . . . Unidentified Prototypes 1 | . . . . 1 Parts Lost 26 | . 1 5 8 12 Power 2 | . . 1 . 1 Propulsion 4 | . . . 2 2 Utility 10 | . . 2 1 7 Weapon 10 | . 1 2 5 2 Highest Loss Streak 11 | . 1 2 6 11 To Critical Strikes . | . . . . . Average Slot Usage (%) 92 | . 93 97 96 67 Engine 11 | . 14 11 9 6 Treads 21 | . 27 22 17 5 Device 4 | . . 4 11 8 Storage 11 | . 14 11 9 9 Processor 7 | . . 11 9 14 Protection 7 | . 8 6 6 7 Energy Gun 11 | . 22 12 . . Ballistic Gun 3 | . 5 6 . . Ballistic Cannon 1 | . . 4 . . Launcher 11 | . . 7 33 12 Naked Turns 2 | . . . . 2 Heaviest Build 38 | 14 22 31 38 37 Greatest Support 43 | 40 40 43 43 20 Greatest Overweight (x) 10 | 1 1 . 1 10 Average Overweight (x) . | . . . . 1 Largest Inventory Capacity 10 | 8 10 10 10 10 Average Capacity 9 | 7 9 10 10 9 Most Carried 10 | 2 9 10 10 8 Average Carried 6 | 1 4 8 7 3 Final Capacity 10 | 8 10 10 10 5 Final Carried 10 | 2 9 10 8 3 Class Distribution -------------------- 46% | Mutant 33% | Gunner 12% | Bomber 8% | Scavenger-Mutant Dominant Class ---------------- Mutant | -10/Materials Gunner | -9/Materials Bomber | -8/Materials Scavenger-Mutant | -7/Factory Resources | -11 -10 -9 -8 -7 ----------- Run | Yrd Mat Mat Mat Fac Matter Collected 1380 | 215 201 566 291 107 Remotely . | . . . . . Salvage Created 3767 | . 552 1500 1391 324 Parts 229 | . 30 89 87 23 Haulers Intercepted 8 | . 2 3 3 . Recyclers Shooed 4 | . . 2 1 1 Parts Field Recycled . | . . . . . Retrieved Matter . | . . . . . Parts Self-Destructed . | . . . . . Prevented . | . . . . . Kills | -11 -10 -9 -8 -7 ------- Run | Yrd Mat Mat Mat Fac Combat Hostiles Destroyed 49 | . 9 20 16 4 Melee 1 | . . . . 1 Guns 20 | . 8 12 . . Cannons 7 | . . 7 . . AOE 19 | . 1 1 14 3 Classes Destroyed 15 | . 5 5 4 1 Worker 9 | . . 4 3 2 Builder 6 | . . . 4 2 Hauler 8 | . 2 3 3 . Recycler 7 | . 1 4 2 . Mechanic 2 | . . 1 1 . Operator 1 | . . 1 . . Watcher 9 | . 3 5 . 1 Swarmer 6 | . 3 3 . . Grunt 27 | . 6 9 9 3 Duelist 1 | . . 1 . . Sentry 10 | . . 7 3 . Specialist 2 | . . . 2 . Hunter 1 | . . . 1 . Programmer 1 | . . . . 1 Heavy 1 | . . . 1 . Best Kill Streak 11 | . 3 5 11 4 Combat Bots Only 5 | . 3 3 5 2 Max Kills in Single Turn 5 | . 1 2 5 2 Gunslinging 1 | . . 1 . . Exploded 3 | . 1 1 3 1 Melee 1 | . . . . 1 Uniques/NPCs Destroyed . | . . . . . Combat | -11 -10 -9 -8 -7 -------- Run | Yrd Mat Mat Mat Fac Hostile Shots Fired 368 | . 63 100 84 121 Missed 102 | . 21 28 22 31 Damage Taken 4397 | . 522 1150 1187 1538 Core 1157 | . 132 216 105 704 Absorbed by Shields . | . . . . . Redirected to Shielding 51 | . . 51 . . Regen/Repaired (Parts) 109 | . 44 . 65 . Core Remaining (%) 68 | 100 47 46 80 . Volleys Fired 151 | . 49 74 18 10 Largest 4 | . 2 3 4 2 Hottest 135 | . 80 135 132 72 Shots Fired 378 | . 99 200 60 19 Gun 253 | . 99 154 . . Cannon 43 | . . 43 . . Launcher 82 | . . 3 60 19 Special . | . . . . . Kinetic 115 | . 16 99 . . Thermal . | . . . . . Explosive . | . . . . . Electromagnetic 263 | . 83 101 60 19 Robot Hit Streak 13 | . 9 13 6 3 Robot Miss Streak 8 | . 4 5 5 8 Penetration Max . | . . . . . Secondary Targets 3 | . 2 1 . . Max Gunslinging Chain 1 | . 1 1 . . Shots Hit Robots 191 | . 51 116 18 6 Core Hits 139 | . 23 51 42 23 Critical Kills . | . . . . . Critical Parts Destroyed 3 | . 1 2 . . Critical Strikes 7 | . 3 4 . . Destroy 3 | . 1 2 . . Corrupt 4 | . 2 2 . . Melee Attacks 2 | . . . . 2 Impact . | . . . . . Slashing 2 | . . . . 2 Piercing . | . . . . . Sneak Attacks . | . . . . . Combat Hostiles . | . . . . . Follow-up Attacks . | . . . . . Damage Inflicted 5841 | . 893 2176 2127 645 Guns 2219 | . 699 1520 . . Cannons 506 | . . 506 . . Explosions 3027 | . 194 150 2127 556 Melee 56 | . . . . 56 Ramming 33 | . . . . 33 Kinetic 1194 | . 88 1106 . . Thermal 678 | . 194 98 386 . Explosive 145 | . . . 145 . Electromagnetic 3735 | . 611 972 1596 556 Impact . | . . . . . Slashing 56 | . . . . 56 Piercing . | . . . . . Highest Corruption 10 | . 2 . 3 10 Average Corruption 2 | . 2 . 2 4 Corruption Purged . | . . . . . Corruption Blocked . | . . . . . Effects 24 | . 11 . 9 4 Message Errors 7 | . 2 . 4 1 Matter Fused 5 | . 3 . . 2 Heat Flow Errors 1 | . 1 . . . Energy Discharges 4 | . 3 . 1 . Parts Rejected 1 | . 1 . . . Parts Fused 1 | . . . 1 . Data Loss (minor) 3 | . . . 3 . Misfires 1 | . 1 . . . Weapon Failures 1 | . . . . 1 Overload Shots . | . . . . . Overflow Damage 103 | . . 17 80 6 Projectiles 17 | . . 17 . . Explosions 85 | . . . 80 5 Melee 1 | . . . . 1 Knockbacks 3 | . . 3 . . Impact . | . . . . . Kinetic 3 | . . 3 . . Secondary . | . . . . . Self-Inflicted Damage 386 | . . 77 189 120 Shots 15 | . . 2 7 6 Rammed 20 | . . . . 20 Targets Rammed 20 | . . . . 20 Kicked . | . . . . . Crushed . | . . . . . Highest Temperature 208 | . 208 191 36 . Average Temperature 60 | . 63 65 14 . Received Heat Transfer 1437 | . 195 378 360 504 Siege Activations . | . . . . . Robots Corrupted 4 | . 1 . 3 . Combat Hostiles 2 | . . . 2 . Parts Fried 25 | . 3 9 9 4 Impact Corruptions . | . . . . . Robots Melted . | . . . . . Combat Hostiles . | . . . . . Parts Melted . | . . . . . Heat Transferred 750 | . 250 100 400 . Parts Sabotaged . | . . . . . Parts Stolen . | . . . . . Parts Stripped . | . . . . . Power Chain Reactions 18 | . 3 2 13 . Alert | -11 -10 -9 -8 -7 ------- Run | Yrd Mat Mat Mat Fac Peak Influence 546 | . 179 491 546 414 Initial 247 | . . 33 159 247 Average 202 | . 70 255 310 279 Maximum Alert Level 2 | . . 2 2 2 Low Security (%) 56 | 100 100 41 25 14 Level 1 31 | . . 39 54 67 Level 2 12 | . . 18 20 18 Level 3 . | . . . . . Level 4 . | . . . . . Level 5 . | . . . . . High Security . | . . . . . Max Security . | . . . . . Squads Dispatched 8 | . . . 5 3 Investigation 1 | . . . 1 . Extermination 1 | . . . . 1 Reinforcement 6 | . . . 4 2 Assault . | . . . . . Garrison . | . . . . . Intercept . | . . . . . Searches Triggered . | . . . . . Construction Impeded 2 | . . . 1 1 Haulers Reinforced . | . . . . . Active Scanning Responses . | . . . . . Cargo Convoy Interrupts . | . . . . . Stealth | -11 -10 -9 -8 -7 --------- Run | Yrd Mat Mat Mat Fac Distress Signals 10 | . . 3 5 2 Communications Jammed . | . . . . . Distress Signals . | . . . . . Times Spotted 92 | . 15 36 34 7 Peak Tracking Total 6 | . 3 5 6 5 Tactical Retreats 10 | . 1 1 7 1 Traps | -11 -10 -9 -8 -7 ------- Run | Yrd Mat Mat Mat Fac Traps Triggered 7 | . 4 . 3 . Indirectly 1 | . . . 1 . Trap Hack Attempts . | . . . . . Triggered . | . . . . . Disarmed . | . . . . . Reprogrammed . | . . . . . Reused . | . . . . . Traps Extracted . | . . . . . Installed . | . . . . . Triggered . | . . . . . Machines | -11 -10 -9 -8 -7 ---------- Run | Yrd Mat Mat Mat Fac Machines Disabled 11 | . 2 4 1 4 Max in Single Turn 3 | . 1 1 1 3 Machines Repaired . | . . . . . Machines Dismantled . | . . . . . Machines Sabotaged . | . . . . . Overloaded Fab Kills . | . . . . . Hacking | -11 -10 -9 -8 -7 --------- Run | Yrd Mat Mat Mat Fac Machines Accessed 15 | . 8 5 2 . Terminals 11 | . 7 4 . . Fabricators . | . . . . . Repair Stations 3 | . 1 1 1 . Recycling Units . | . . . . . Scanalyzers 1 | . . . 1 . Garrison Access . | . . . . . Total Hacks 39 | . 17 13 9 . Successful 21 | . 12 4 5 . Failed 18 | . 5 9 4 . Catastrophic . | . . . . . Database Lockouts . | . . . . . Manual . | . . . . . Terminals 24 | . 13 11 . . Fabricators . | . . . . . Repair Stations 12 | . 4 2 6 . Recycling Units . | . . . . . Scanalyzers 3 | . . . 3 . Garrison Access . | . . . . . Terminal Hacks 13 | . 9 4 . . Robot Analysis 1 | . 1 . . . Prototype ID Bank 4 | . 2 2 . . Emergency Access Points 1 | . 1 . . . Locate Traps 1 | . . 1 . . Surveillance Status 1 | . 1 . . . Recall Investigation 1 | . 1 . . . Hauler Manifests 2 | . 2 . . . Zone Layout 2 | . 1 1 . . Fabricator Hacks . | . . . . . Repair Station Hacks 6 | . 3 . 3 . Scan Component 4 | . 2 . 2 . Repair 2 | . 1 . 1 . Recycling Unit Hacks . | . . . . . Scanalyzer 2 | . . . 2 . Insert Component 1 | . . . 1 . Analyze 1 | . . . 1 . Garrison Access Hacks . | . . . . . Unauthorized Hacks . | . . . . . Terminals . | . . . . . Fabricators . | . . . . . Repair Stations . | . . . . . Recycling Units . | . . . . . Scanalyzers . | . . . . . Garrison Access . | . . . . . Data Cores Recovered . | . . . . . Used . | . . . . . Hacking Detections 10 | . 5 4 1 . Full Trace Events 1 | . 1 . . . Feedback Events . | . . . . . Feedback Blocked . | . . . . . Robot Schematics Acquired . | . . . . . Robots Built . | . . . . . Authchips . | . . . . . Time . | . . . . . Total Robot Build Rating . | . . . . . Part Schematics Acquired 1 | . . . 1 . Parts Built . | . . . . . Authchips . | . . . . . Time . | . . . . . Total Part Build Rating . | . . . . . Parts Repaired 2 | . 1 . 1 . Time 52 | . 26 . 26 . Parts Recycled . | . . . . . Recycled Matter . | . . . . . Retrieved Matter . | . . . . . Retrieved Components . | . . . . . Parts Scanalyzed 1 | . . . 1 . Part Schematics Acquired 1 | . . . 1 . Parts Damaged . | . . . . . Bothacking | -11 -10 -9 -8 -7 ------------ Run | Yrd Mat Mat Mat Fac Used RIF Installer . | . . . . . Robots Hacked . | . . . . . Non-combat . | . . . . . Combat . | . . . . . Robot Hacks Applied . | . . . . . Relay Couplers Released . | . . . . . Fabnet Peak Effective % . | . . . . . Robots Rewired . | . . . . . Allies Hacked . | . . . . . Hacks Repelled . | . . . . . Allies | -11 -10 -9 -8 -7 -------- Run | Yrd Mat Mat Mat Fac Total Allies . | . . . . . Largest Group . | . . . . . Highest-Rated Group . | . . . . . Highest-Rated Ally . | . . . . . Total Orders . | . . . . . Ally Attacks . | . . . . . Total Damage . | . . . . . Kills . | . . . . . Allies Corrupted . | . . . . . Allies Melted . | . . . . . Intel | -11 -10 -9 -8 -7 ------- Run | Yrd Mat Mat Mat Fac Robot Analysis Total 1 | . 1 . . . Derelict Logs Recovered . | . . . . . Drone Launches . | . . . . . Drone Recoveries . | . . . . . Exploration | -11 -10 -9 -8 -7 ------------- Run | Yrd Mat Mat Mat Fac Turns Passed 4284 | 90 1459 1303 965 467 Spaces Moved 1947 | 51 775 597 380 144 Core 15 | 6 . . . 9 Treads 1928 | 45 775 597 380 131 Legs . | . . . . . Wheels . | . . . . . Hover 4 | . . . . 4 Flight . | . . . . . Fastest Speed 50 | 50 160 160 160 50 Average Speed 166 | 151 160 160 162 240 Slowest Speed 550 | 160 240 160 240 550 Overloaded Moves . | . . . . . Propulsion Burnouts . | . . . . . Robots Hopped . | . . . . . Cave-ins Triggered . | . . . . . Exploration Rate (%) 38 | 5 93 61 30 4 Regions Visited 4 Branch Regions . Pre-discovered Areas . | . . . . . Known Exits Taken . | . . . . . Unknown Exits Taken 4 | 1 1 1 1 . Scrap Searched . | . . . . . Spaces Dug . | . . . . . Terrain Destroyed 127 | . 11 9 107 . Melee . | . . . . . Projectile . | . . . . . AOE 127 | . 11 9 107 . Terrain Rammed . | . . . . . Walls Destroyed . | . . . . . Machines Disabled . | . . . . . Actions | -11 -10 -9 -8 -7 --------- Run | Yrd Mat Mat Mat Fac Total 2671 | 64 897 789 687 234 Wait 390 | . 32 50 270 38 Move 1943 | 50 774 596 379 144 Hop . | . . . . . Pick Up 69 | 8 20 28 8 5 Fast Attach . | . . . . . Attach 38 | 6 5 9 7 11 Detach 1 | . . . . 1 Swap 21 | . 8 12 1 . Drop 36 | . 9 20 4 3 Fire 151 | . 49 74 18 10 Melee 2 | . . . . 2 Ram 20 | . . . . 20 Kick . | . . . . . Crush . | . . . . . Escape Stasis . | . . . . . Rewire . | . . . . . Trap . | . . . . . Miscellaneous . | . . . . . Route ------- -11/Scrapyard -10/Materials (discovered 5 exits: *Mat x3 / [*Min x2]) -9/Materials (discovered 3 exits: *Mat / [*Min x2]) -8/Materials (discovered 3 exits: [*Fac] / [*Sto x2]) -7/Factory History --------- Turn | Location | Event 9 | -11/Scrapyard | Discovered new exit (range 15) 91 | -11/Scrapyard | Entered Materials 301 | -10/Materials | Build established: Mutant 371 | -10/Materials | Discovered new exit (range 16) 411 | -10/Materials | Repaired EM Pulse Gun 471 | -10/Materials | Discovered new exit (range 13) 502 | -10/Materials | Discovered new exit (range 14) 997 | -10/Materials | Core integrity fell below 50% 1069 | -10/Materials | Discovered new exit (range 16) 1493 | -10/Materials | Discovered new exit (range 16) 1550 | -10/Materials | Entered another Materials area 1550 | -9/Materials | Evolved 2 slots: Utility x1, Weapon x1 1552 | -9/Materials | Discovered new exit (range 7) 2127 | -9/Materials | Build established: Gunner 2176 | -9/Materials | Discovered new exit (range 13) 2362 | -9/Materials | Core integrity fell below 50% 2797 | -9/Materials | Discovered new exit (range 16) 2853 | -9/Materials | Entered another Materials area 2853 | -8/Materials | Evolved 2 slots: Utility x1, Weapon x1 2855 | -8/Materials | Discovered new exit (range 14) 2859 | -8/Materials | Discovered new exit (range 13) 3300 | -8/Materials | Repaired Lgt. Treads 3544 | -8/Materials | Met 7R-MNS 3552 | -8/Materials | Build established: Bomber 3605 | -8/Materials | Discovered new exit (range 14) 3806 | -8/Materials | Lost 6 parts (2n1u3w) 3818 | -8/Materials | Entered Factory 3818 | -7/Factory | Evolved 2 slots: Utility x2 4123 | -7/Factory | Build established: Scavenger-Mutant 4255 | -7/Factory | Core integrity fell below 50% 4271 | -7/Factory | Core integrity fell below 20% 4271 | -7/Factory | System corruption reached 10% 4285 | -7/Factory | Destroyed by G-47 Trooper with Particle Gun Last Messages --------------- 04263_ Slammed into P-60 Hacker. 04264_ Broken Imp. Heat Sink destroyed. 04264_ Med. Storage Unit destroyed. 04265_ Slammed into P-60 Hacker. 04270_ Destabilizing: System corrupted (+2). [Achievement: System Compromised] 04271_ Slammed into P-60 Hacker. 04272_ Destabilizing: Core damaged (-7). 04273_ Slammed into P-60 Hacker. 04275_ P-60 Hacker destroyed. [Achievement: Fist Fight] 04275_ Broken Machine Analyzer destroyed. 04276_ K-01 Serf collects debris. 04276_ Acquired Gravmag System. 04279_ Acquired Mic. Nuclear Core. 04279_ Critical hit (Burn: +37). 04280_ K-01 Serf collects debris. 04283_ Acquired Target Analyzer. 04283_ K-01 Serf collects debris. 04283_ Gravmag System destroyed. Map ----- +----------------------------------------------------+ | ?????????????????????????????????????????????????? | | ?????????????????????????????????????????????????? | | ?????????????????????????????????????????????????? | | ?????????????????????????????????????????????????? | | ?????????????????????????????????????????????????? | | ?????????????????????????????????????????????????? | | ?????????????????????????????????????????????????? | | ?????????????????????????????????????????????????? | | ?????????????????????????????????????????????????? | | ?????????????????????????????????????????????????? | | ?????????????????????????????????????????????????? | | ?????????????????????????? ??????? ??????????????? | | ?????????????????????????? ##?#### ????????????? | | ?????????????????????????# ? ?????????? | | ?????????????????????????# ? #???????? | | ???###########???????????# """ #???????? | | ???# ! #???????????+ """ #???????? | | ???# #???????????# """ #???????? | | ???# = #???????????# "" #???????? | | ##?#!!! #???????????# * #???????? | | #?#!! #???????????# % #???????? | | #?#!! #???????????# = #???????? | | #?# #???????????# " #####???? | | #?# #???????????# ????? | | #######+################# " #???????? | | + to @ % #???????? | | ####### ################# #???????? | | #?????# #??????????###### #?""""""" | | #?????# #?????????? #[!%% #?""""""" | | #?????# #???????""" #=%=%g #?""""""" | | #?????# ########""" # ! gk ### T####?""""""" | | #?????# ##""" # | #??###??????????? | | ##?????# ## # ]= #???????????????? | | ######## ##""" # #???????????????? | | #""" # #????""?????????? | | #""" # #????""?????????? | | + # ! #????Y"?????????? | | ####+#####+## ########## #????""?????????? | | # ## #?# #????""?????????? | | # ### + ?????????? | | """"""""" # =####### """ #???????? | | # #####????????"""??????????? | | """"""""" ###### #????????????"""??????????? | | #????#######?????????????????????????? | | #############????????????????????????????????????? | | | | | | | | | | | +----------------------------------------------------+ Best States ------------- Heat Dissipation 48 Energy Generation 14 Energy Capacity 480 Matter Stores 300 Matter Capacity 300 Sight Range 16 Terrain Scan Range 14 Terrain Scan Density 10 Armor Coverage 300 Weapon Shielding 33 Evasion (%) 45 Targeting Accuracy 5 Recoil Reduction 2 Particle Charging 15 Item Schematics ----------------- Hvy. Particle Gun | -8/Materials | Scanalyzed Robot Schematics ------------------ None Fabricated ------------ Nothing Alien Tech Used ----------------- None Achievements -------------- Fist Fight System Compromised Challenges ------------ None Game ------ Seed MetaAntigravBlaster Manual? 0 Play Time 01:03:07 Cumulative 11.2 hours Start 2024.04.04 @ 18:17:47 End 2024.04.04 @ 22:41:18 Sessions 2 Manual Loads 0 Difficulty Rogue Special Mode None Game No. 10 Rogue 10 Adventurer 0 Explorer 0 Win Type - Total 0 Types 0/0/0/0/0/0/0/0/0 Lore% 9 Gallery% 13 Achievement% 12 Wizard Run 0 Options --------- Layout 1 ASCII 0 Keyboard 0 Movement Mouse Keybinds 0 Fullscreen 1 Font 28/TerminusBold Map View 30x25 Zoom Use 98% Tactical HUD 1 Map Filters NONE Filters NONE Steam 1 RUN: 6d333f74-45f8-4735-9a14-3e8eeb5e9ef3